Workbook

Sheet Pricing Schedule
E3: Quantities | I3: Rate | J3: Amount over 2 years | O3: Senior cook | Q3: =8500 -> R8,500.00 | R3: =67.69*1.25 -> 84.61 | S3: =((Q3/20)/8)*1.25 -> R66.41
B4: Description | D4: Unit | E4: Quantity | F4: Quantities / period | G4: Period | H4: Total Quantity | O4: Cook | Q4: R5,357.00 | R4: =((Q4/20)/8)*1.25 -> 41.85
B5: Manpower Salary Rates | O5: Waiters | Q5: R4,935.00 | R5: =((Q5/20)/8)*1.25 -> 38.55
B6: Supervisor | D6: Hour | E6: 1 | F6: 160 | G6: 24 Months | H6: =E6*F6*G6 -> 3,840
B7: Senior cook | D7: Hour | E7: 3 | F7: 160 | G7: 24 Months | H7: 11,520
B8: Senior storeperson | D8: Hour | E8: 1 | F8: 160 | G8: 24 Months | H8: 3,840
B9: Junior storeperson | D9: Hour | E9: 1 | F9: 160 | G9: 24 Months | H9: 3,840
B10: Cooks | D10: Hour | E10: 9 | F10: 160 | G10: 24 Months | H10: 34,560
B11: Waiters | D11: Hour | E11: 6 | F11: 160 | G11: 24 Months | H11: 23,040
B12: Cleaners | D12: Hour | E12: 6 | F12: 160 | G12: 24 Months | H12: 23,040
B13: Saturday Overtime
B14: Senior Storeperson | D14: Hour | E14: 1 | F14: 16 | G14: 24 Months | H14: =E14*F14*G14 -> 384 | L14: =VLOOKUP(B14,$B$6:$I$12,8,FALSE) -> 0
B15: Junior storeperson | D15: Hour | E15: 1 | F15: 16 | G15: 24 Months | H15: 384 | L15: 0
B16: Supervisor | D16: Hour | E16: 1 | F16: 16 | G16: 24 Months | H16: 384 | L16: 0
B17: Senior cook | D17: Hour | E17: 1 | F17: 16 | G17: 24 Months | H17: 384 | L17: 0
B18: Cooks | D18: Hour | E18: 2 | F18: 32 | G18: 24 Months | H18: 1,536 | L18: 0
B19: Waiters | D19: Hour | E19: 3 | F19: 48 | G19: 24 Months | H19: 3,456 | L19: 0
B20: Cleaners | D20: Hour | E20: 3 | F20: 48 | G20: 24 Months | H20: 3,456 | L20: 0
B21: Sunday Overtime
B22: Senior Storeperson | D22: Hour | E22: 1 | F22: 16 | G22: 24 Months | H22: =E22*F22*G22 -> 384 | L22: =VLOOKUP(B22,$B$6:$I$12,8,FALSE) -> 0
B23: Junior storeperson | D23: Hour | E23: 1 | F23: 16 | G23: 24 Months | H23: 384 | L23: 0
B24: Supervisor | D24: Hour | E24: 1 | F24: 16 | G24: 24 Months | H24: 384 | L24: 0
B25: Senior cook | D25: Hour | E25: 1 | F25: 16 | G25: 24 Months | H25: 384 | L25: 0
B26: Cooks | D26: Hour | E26: 2 | F26: 32 | G26: 24 Months | H26: 1,536 | L26: 0
B27: Waiters | D27: Hour | E27: 3 | F27: 48 | G27: 24 Months | H27: 3,456 | L27: 0
B28: Cleaners | D28: Hour | E28: 3 | F28: 48 | G28: 24 Months | H28: 3,456 | L28: 0
B29: Public Holiday Hours
B30: Senior cook | D30: Hour | E30: 1 | F30: 24 | G30: 2 Years | H30: =E30*F30*G30 -> 48
B31: Supervisor | D31: Hour | E31: 1 | F31: 24 | G31: 2 Years | H31: 48
B32: Senior Storeperson | D32: Hour | E32: 1 | F32: 24 | G32: 2 Years | H32: 48
B33: Junior storeperson | D33: Hour | E33: 1 | F33: 24 | G33: 2 Years | H33: 48
B34: Cooks | D34: Hour | E34: 2 | F34: 106 | G34: 2 Years | H34: 424
B35: Waiters | D35: Hour | E35: 2 | F35: 106 | G35: 2 Years | H35: 424
B36: Cleaners | D36: Hour | E36: 2 | F36: 106 | G36: 2 Years | H36: 424
B37: Uniforms, Laundry Services, Training Requirement, and Transport Needs
B38: PPE: | M38: =319*1.1 -> 350.90 | N38: =329*1.1 -> 361.90 | O38: =169*1.1 -> 185.90 | P38: =385.99*1.1 -> 424.59 | Q38: =((269.36+390.64)/2)*1.1 -> 363.00 | R38: =107.24*1.1 -> 117.96 | S38: =379.99*1.1 -> 417.99 | T38: =143.99*1.1 -> 158.39 | U38: =828*1.1 -> 910.80
B39: Chef's pants: x3 per person / annum | D39: No. | E39: 57 | F39: 1 | G39: 2 Years | H39: =E39*F39*G39 -> 114 | L39: =319*1.1 -> 350.90 | M39: =M38*12 -> 4,210.80 | N39: =N38*12 -> 4,342.80 | O39: =O38*12 -> 2,230.80 | P39: =P38*27 -> 11,463.90 | Q39: =Q38*6 -> 2,178.00 | R39: =R38*6 -> 707.78 | S39: =S38*2*8 -> 6,687.82 | T39: =T38*2*8 -> 2,534.22 | U39: =U38*2*8 -> 14,572.80 | V39: =SUM(M39:U39) -> 48,928.94
B40: Chef's jackets: x3 per person / annum | D40: No. | E40: 57 | F40: 1 | G40: 2 Years | H40: 114 | L40: =329*1.1 -> 361.90
B41: Aprons: x3 per person / annum | D41: No. | E41: 57 | F41: 1 | G41: 2 Years | H41: 114 | L41: =169*1.1 -> 185.90
B42: Pair of safety boots: x2 per person / annum | D42: No. | E42: =($E$6+$E$7+$E$10+$E$11+$E$8+$E$9+$E$12)*2 -> 54 | F42: 1 | G42: 2 Years | H42: 108 | L42: =385.99*1.1 -> 424.59
B43: Overall for cleaners: x3 per person / annum | D43: No. | E43: =$E$12*3 -> 18 | F43: 1 | G43: 2 Years | H43: 36 | L43: =((269.36+390.64)/2)*1.1 -> 363.00
B44: PVC HEAVY DUTY APRON: x1 per cleaner / annum | D44: No. | E44: =$E$12 -> 6 | F44: 1 | G44: 2 Years | H44: 12 | L44: =107.24*1.1 -> 117.96
B45: Store person Freezer jackets: x2 person / annum | D45: No. | E45: =(E8+E9)*2 -> 4 | F45: 1 | G45: 2 Years | H45: 8 | L45: =828*1.1 -> 910.80
B46: Transport (27 employees) | D46: Month | E46: 27 | F46: 12 | G46: 2 Years | H46: 648
B47: Training
B48: First aid Level 1 and 2 Hira (Hazard Identificaton Risk Assessment Stack and Storage | D48: Each | E48: 27 | F48: 1 | G48: 2 Years | H48: 54
B49: Evacuation Officer | D49: Each | E49: 4 | F49: 1 | G49: 2 Years | H49: 8
B50: Stacking and storage | D50: Each | E50: 4 | F50: 1 | G50: 2 Years | H50: 8
B51: HIRA (hazard identification & risk assessment | D51: Each | E51: 4 | F51: 1 | G51: 2 Years | H51: 8
B52: Incident / accident investigation | D52: Each | E52: 4 | F52: 1 | G52: 2 Years | H52: 8
B53: Fire Warden | D53: Each | E53: 3 | F53: 1 | G53: 2 Years | H53: 6
B54: SHE (Safety Health & Environment) | D54: Each | E54: 2 | F54: 1 | G54: 2 Years | H54: 4
B55: Environmental Rep | D55: Each | E55: 2 | F55: 1 | G55: 2 Years | H55: 4
B56: Food Safety and Hygiene | D56: Each | E56: 27 | F56: 1 | G56: 2 Years | H56: 54
B57: Food Handlers | D57: Each | E57: 27 | F57: 1 | G57: 2 Years | H57: 54
B58: Annual medicals | D58: Each | E58: 27 | F58: 1 | G58: 2 Years | H58: 54
B59: Police Clerance Certificate | D59: Each | E59: 27 | F59: 1 | G59: 2 Years | H59: 54
B60: Specilalised Cleaning
B61: Pest Control for the kitchen and Canteen | D61: Month | E61: 1 | F61: 12 | G61: 2 Years | H61: 24
B62: Deep Cleaning and Cleaning of Extractor Fan and Maintance | D62: No. | E62: 1 | F62: 4 (Quartely) | G62: 2 Years | H62: 8
B63: Cleaning of High Rise Windows and Walls | D63: Item | E63: 1 | F63: 4 (Quartely) | G63: 2 Years | H63: 8
B64: Supply Of Cleaning Equipment
B65: Supply of Industrial Pressure Washer | D65: Each | E65: 2 | F65: 1 | G65: 1 (Once) | H65: 2
B66: Calibration of scales and thermometer | D66: Each | E66: 1 | F66: 1 | G66: 2 Years | H66: 2
B67: Heated Water Bath Tank for Cleaning Pots 400litres | D67: Each | E67: 1 | F67: 1 | G67: 1 (Once) | H67: 1
B68: Cleaning Chemicals
B69: Bacterx C - Disinfect | D69: Pack | E69: 1Pack | F69: 100 | G69: 1 (Once-off) | H69: =G69*F69 -> 100 | L69: =162.45*1.2 -> 194.94 | M69: =162.45*1.2 -> 194.94
B70: Best - Washing dishes | D70: Litre | E70: 25Litre | F70: 60 | G70: 1 (Once-off) | H70: =G70*F70 -> 60 | L70: =499*1.2 -> 598.80 | M70: =499*1.2 -> 598.80
B71: Descaler for Pot washer | D71: Litre | E71: 25Litre | F71: 60 | G71: 1 (Once-off) | H71: 60
B72: Descaler - Automatic dishwashing | D72: Litre | E72: 25Litre | F72: 60 | G72: 1 (Once-off) | H72: 60 | L72: =290*5*1.2 -> 1740.00 | M72: =290*5*1.2 -> 1740.00
B73: Sewersolvent - Drain cleaning | D73: Litre | E73: 25Litre | F73: 40 | G73: 1 (Once-off) | H73: 40 | L73: =303*5*1.2 -> 1818.00 | M73: =303*5*1.2 -> 1818.00
B74: Fat solvent - Tiles and equipment | D74: Litre | E74: 25Litre | F74: 50 | G74: 1 (Once-off) | H74: 50 | L74: =320*1.2*5 -> 1920.00 | M74: =320*1.2*5 -> 1920.00
B75: Dishomatic - Crookery, cutlery, & glasses | D75: Litre | E75: 25Litre | F75: 60 | G75: 1 (Once-off) | H75: 60 | L75: =290*5*1.2 -> 1740.00
B76: Kemklor 12 - Floors, walls and Utensils | D76: Litre | E76: 25Litre | F76: 40 | G76: 1 (Once-off) | H76: 40
B77: Kem stripper - Floors | D77: Litre | E77: 25Litre | F77: 24 | G77: 1 (Once-off) | H77: 24
B78: Powerklean - Floors, walls and stoves | D78: Litre | E78: 25Litre | F78: 60 | G78: 1 (Once-off) | H78: 60
B79: Ovenklean - Oven, grillers and grease utensils | D79: Litre | E79: 25Litre | F79: 40 | G79: 1 (Once-off) | H79: 40
B80: Ovensolve - Oven, grillers and grease utensils | D80: Litre | E80: 25Litre | F80: 40 | G80: 1 (Once-off) | H80: 40 | L80: =93*1.2*5 -> 558.00
B81: Sterlenk - Hand washing | D81: Litre | E81: 25Litre | F81: 60 | G81: 1 (Once-off) | H81: 60 | L81: =170.95*1.2*5 -> 1025.70
B82: Winglo - Windows and mirrors | D82: Litre | E82: 1Litre | F82: 100 | G82: 1 (Once-off) | H82: 100 | L82: =42.95*1.2 -> 51.54
B83: Bleach - Dishwashing | D83: Litre | E83: 25Litre | F83: 60 | G83: 1 (Once-off) | H83: 60 | L83: =(389/10)*25*1.2 -> 1167.00
B84: Ammonia Based Multipurpose Cleaner (SABS Approved) - Multipurpose cleaning | D84: Litre | E84: 25Litre | F84: 60 | G84: 1 (Once-off) | H84: 60 | L84: =375*1.2 -> 450.00
B85: Management profit and office overheads
B86: Management profit and office overheads | D86: Item | E86: 1 | F86: 1 | G86: 2 Years | H86: =E86*F86*G86 -> 2 | L86: =162.45*1.2 -> 194.94 | M86: =162.45*1.2 -> 194.94
